{"text_format":"3","workbook":"xlsx","n_sheets":4,"sheets":["POČETAK","PARAMETRI PROJEKTA","DETALJI O PROJEKTU","UKUPNI ZBROJEVI ZA PROJEKT"],"not_rendered":{"charts":2,"defined_names":3,"pivot_tables":1},"read":"whole","date_system":"1900"}

{"sheet":"POČETAK","index":0,"n_rows":7,"n_cols":2,"rows_kept":7}
[null,"O OVOM PREDLOŠKU"]
[null,"U ovoj radnoj knjizi za praćenje planiranja događaja pratite parametri projekta, detalji o projektu i ukupni zbrojevi za projekt."]
[null,"Na radni list Parametri projekta unesite podatke da biste ažurirali stupčaste grafikone, a isto učinite i na radnom listu Detalji o projektu. Zaokretna tablica na radnom listu Ukupni zbrojevi za projekt ažurira se automatski."]
[null,"Na radnom listu Parametri ispunite polje Naziv tvrtke i ono će se automatski ažurirati na svim drugim radnim listovima."]
[null,"Napomena:  "]
[null,"dodatne su upute navedene u stupcu A na svakom radnom listu u radnoj knjigi PRAĆENJE PLANIRANJA DOGAĐAJA. Ovaj je tekst namjerno skriven. Da biste uklonili tekst, odaberite stupac A, a zatim odaberite IZBRIŠI. Da biste otkrili tekst, odaberite stupac A, a zatim promijenite boju fonta."]
[null,"Da biste saznali više o tablicama na radnim listovima, pritisnite SHIFT i zatim F10 na tablici pa odaberite mogućnost TABLICA i potom ZAMJENSKI TEKST."]

{"sheet":"PARAMETRI PROJEKTA","index":1,"n_rows":24,"n_cols":9,"rows_kept":24,"merged":[[23,1,42,3]]}
["Na ovom radnom listu stvorite parametri projekta. U ćeliju zdesna unesite naziv tvrtke. Korisne upute nalaze se u ćelijama u tom stupcu. Pomoću tipke sa strelicom prema dolje počnite s radom.","Naziv tvrtke"]
["U ćeliji zdesna nalazi se naslov ovog radnog lista.","Praćenje projekata upravljanja događajem"]
["Poruka o povjerljivosti podataka nalazi se u ćeliji s desne strane.",{"$f":"B1&\" – povjerljivo\"","v":"Naziv tvrtke – povjerljivo"}]
["U ćeliji zdesna nalazi se savjet.","Osjenčane se ćelije izračunavaju automatski. U njih ne morate ništa unositi."]
["Unesite pojedinosti u tablicu Parametri počevši s ćelijom s desne strane. Sljedeća je uputa u ćeliji A12.","VRSTA PROJEKTA","VODITELJ KLIJENTA","VODITELJ PROJEKTA","VODITELJ STRATEGIJE","STRUČNJAK ZA DIZAJN","OSOBLJE DOGAĐAJA","ADMINISTRATORI","Zbroj"]
[null,"Razvoj strategije događaja",{"v":0.2,"d":"20%"},{"v":0.1,"d":"10%"},{"v":0.6,"d":"60%"},{"v":0,"d":"0%"},{"v":0,"d":"0%"},{"v":0.1,"d":"10%"},{"$f":"SUM(Parametri[[#This Row],[VODITELJ KLIJENTA]:[ADMINISTRATORI]])","v":{"v":1,"d":"100%"}}]
[null,"Planiranje događaja",{"v":0.2,"d":"20%"},{"v":0.5,"d":"50%"},{"v":0.1,"d":"10%"},{"v":0.1,"d":"10%"},{"v":0,"d":"0%"},{"v":0.1,"d":"10%"},{"$f":"SUM(Parametri[[#This Row],[VODITELJ KLIJENTA]:[ADMINISTRATORI]])","v":{"v":0.9999999999999999,"d":"100%"}}]
[null,"Dizajn događaja",{"v":0.2,"d":"20%"},{"v":0.2,"d":"20%"},{"v":0,"d":"0%"},{"v":0.5,"d":"50%"},{"v":0,"d":"0%"},{"v":0.1,"d":"10%"},{"$f":"SUM(Parametri[[#This Row],[VODITELJ KLIJENTA]:[ADMINISTRATORI]])","v":{"v":1,"d":"100%"}}]
[null,"Logistika događaja",{"v":0.2,"d":"20%"},{"v":0.6,"d":"60%"},{"v":0,"d":"0%"},{"v":0,"d":"0%"},{"v":0.1,"d":"10%"},{"v":0.1,"d":"10%"},{"$f":"SUM(Parametri[[#This Row],[VODITELJ KLIJENTA]:[ADMINISTRATORI]])","v":{"v":1,"d":"100%"}}]
[null,"Osoblje za događaj",{"v":0.2,"d":"20%"},{"v":0.1,"d":"10%"},{"v":0,"d":"0%"},{"v":0,"d":"0%"},{"v":0.6,"d":"60%"},{"v":0.1,"d":"10%"},{"$f":"SUM(Parametri[[#This Row],[VODITELJ KLIJENTA]:[ADMINISTRATORI]])","v":{"v":1,"d":"100%"}}]
[null,"Procjena događaja",{"v":0.2,"d":"20%"},{"v":0.2,"d":"20%"},{"v":0.2,"d":"20%"},{"v":0.2,"d":"20%"},{"v":0,"d":"0%"},{"v":0.2,"d":"20%"},{"$f":"SUM(Parametri[[#This Row],[VODITELJ KLIJENTA]:[ADMINISTRATORI]])","v":{"v":1,"d":"100%"}}]
["U ćelije s desne strane od C12 do H12 unesite jedinstvena visina naknade. Sljedeća je uputa u ćeliji A14.","Jedinstvena visina naknade",{"v":180,"d":"180 kn"},{"v":120,"d":"120 kn"},{"v":150,"d":"150 kn"},{"v":100,"d":"100 kn"},{"v":80,"d":"80 kn"},{"v":60,"d":"60 kn"}]
[]
["Stupčasti grafikon u kojem se prikazuje usporedba planirani i stvarni trošak nalazi se u ćeliji s desne strane, a stupčasti grafikon u kojem se nalazi usporedba planirani i stvarni sati nalazi se u ćeliji F14.",{"$nulls":4},"U ovoj se ćeliji nalazi stupčasti grafikon s prikazom planiranih i stvarnih sati."]
[null,null,"VODITELJ KLIJENTA","VODITELJ PROJEKTA","VODITELJ STRATEGIJE","STRUČNJAK ZA DIZAJN","OSOBLJE DOGAĐAJA","ADMINISTRATORI"]
[null,"PLANIRANI TROŠAK",{"$f":"SUBTOTAL(109,DetaljiOProjektu[VODITELJ KLIJENTA])","v":{"v":54000,"d":"54,000.00 kn"}},{"$f":"SUBTOTAL(109,DetaljiOProjektu[VODITELJ PROJEKTA])","v":{"v":52200,"d":"52,200.00 kn"}},{"$f":"SUBTOTAL(109,DetaljiOProjektu[VODITELJ STRATEGIJE])","v":{"v":24000,"d":"24,000.00 kn"}},{"$f":"SUBTOTAL(109,DetaljiOProjektu[STRUČNJAK ZA DIZAJN])","v":{"v":29000,"d":"29,000.00 kn"}},{"$f":"SUBTOTAL(109,DetaljiOProjektu[OSOBLJE DOGAĐAJA])","v":{"v":13200,"d":"13,200.00 kn"}},{"$f":"SUBTOTAL(109,DetaljiOProjektu[ADMINISTRATORI])","v":{"v":9000,"d":"9,000.00 kn"}}]
[null,"STVARNI TROŠAK",{"$f":"SUBTOTAL(109,DetaljiOProjektu[[VODITELJ KLIJENTA ]])","v":{"v":54360,"d":"54,360.00 kn"}},{"$f":"SUBTOTAL(109,DetaljiOProjektu[[VODITELJ PROJEKTA ]])","v":{"v":51540,"d":"51,540.00 kn"}},{"$f":"SUBTOTAL(109,DetaljiOProjektu[[VODITELJ STRATEGIJE ]])","v":{"v":25650,"d":"25,650.00 kn"}},{"$f":"SUBTOTAL(109,DetaljiOProjektu[[STRUČNJAK ZA DIZAJN ]])","v":{"v":28900,"d":"28,900.00 kn"}},{"$f":"SUBTOTAL(109,DetaljiOProjektu[[OSOBLJE DOGAĐAJA ]])","v":{"v":13400,"d":"13,400.00 kn"}},{"$f":"SUBTOTAL(109,DetaljiOProjektu[[ADMINISTRATORI ]])","v":{"v":9060,"d":"9,060.00 kn"}}]
[null,"PLANIRANI SATI",{"$f":"C16/$C$12","v":{"v":300,"d":"300.00"}},{"$f":"D16/$C$12","v":{"v":290,"d":"290.00"}},{"v":133.33333333333334,"d":"133.33"},{"v":161.11111111111111,"d":"161.11"},{"v":73.33333333333333,"d":"73.33"},{"v":50,"d":"50.00"}]
[null,"STVARNI SATI",{"$f":"C17/$C$12","v":{"v":302,"d":"302.00"}},{"$f":"D17/$C$12","v":{"v":286.3333333333333,"d":"286.33"}},{"$f":"E17/$C$12","v":{"v":142.5,"d":"142.50"}},{"$f":"F17/$C$12","v":{"v":160.55555555555554,"d":"160.56"}},{"$f":"G17/$C$12","v":{"v":74.44444444444444,"d":"74.44"}},{"$f":"H17/$C$12","v":{"v":50.333333333333336,"d":"50.33"}}]
[]
[]
[]
[]
[null,"U ovoj se ćeliji nalazi stupčasti grafikon s prikazom planiranog i stvarnog troška."]

{"sheet":"DETALJI O PROJEKTU","index":2,"n_rows":10,"n_cols":23,"rows_kept":10}
["Na ovom radnom listu stvorite detalji o projektu. Naziv tvrtke automatski se ažurira u ćeliji zdesna. Korisne upute nalaze se u ćelijama u tom stupcu. Pomoću tipke sa strelicom prema dolje počnite s radom.",{"$f":"'PARAMETRI PROJEKTA'!B1","v":"Naziv tvrtke"}]
["U ćeliji zdesna nalazi se naslov ovog radnog lista.","Praćenje projekata upravljanja događajem"]
["Poruka o povjerljivosti podataka nalazi se u ćeliji s desne strane.",{"$f":"'PARAMETRI PROJEKTA'!B3","v":"Naziv tvrtke – povjerljivo"}]
["Unesite informacije u tablicu Detalji O Projektu počevši s ćelijom s desne strane.\nINFORMACIJE\nDa biste dodali redak u tablicu s desne strane, odaberite najdonju ćeliju u tijelu tablice (ne redak zbroja) pa pritisnite tabulator ili pritisnite SHIFT + F10 ondje gdje želite umetni redak te odaberite Umetanje | Reci tablice iznad/ispod.\nObavezno izbrišite sve neiskorištene retke jer bi se inače, s obzirom na to da se u zaokretnoj tablici UKUPNI ZBROJEVI ZA PROJEKT koriste sve ćelije tablice, dobili pogrešni rezultati.","NAZIV PROJEKTA","VRSTA PROJEKTA","PROCIJENJENI POČETAK","PROCIJENJENI ZAVRŠETAK","STVARNI POČETAK","STVARNI ZAVRŠETAK","PROCIJENJENI RAD","STVARNI RAD","PROCIJENJENO TRAJANJE","STVARNO TRAJANJE","VODITELJ KLIJENTA","VODITELJ PROJEKTA","VODITELJ STRATEGIJE","STRUČNJAK ZA DIZAJN","OSOBLJE DOGAĐAJA","ADMINISTRATORI","VODITELJ KLIJENTA ","VODITELJ PROJEKTA ","VODITELJ STRATEGIJE ","STRUČNJAK ZA DIZAJN ","OSOBLJE DOGAĐAJA ","ADMINISTRATORI "]
[null,"Projekt 1","Razvoj strategije događaja",{"$f":"DATE(YEAR(TODAY()),6,9)","v":"2019-06-09"},{"$f":"DATE(YEAR(TODAY()),8,7)","v":"2019-08-07"},{"$f":"DATE(YEAR(TODAY()),6,29)","v":"2019-06-29"},{"$f":"DATE(YEAR(TODAY()),9,3)","v":"2019-09-03"},200,220,{"$f":"DAYS360(DetaljiOProjektu[[#This Row],[PROCIJENJENI POČETAK]],DetaljiOProjektu[[#This Row],[PROCIJENJENI ZAVRŠETAK]],FALSE)","v":58},{"$f":"DAYS360(DetaljiOProjektu[[#This Row],[STVARNI POČETAK]],DetaljiOProjektu[[#This Row],[STVARNI ZAVRŠETAK]],FALSE)","v":64},{"$f":"INDEX(Parametri[],MATCH(DetaljiOProjektu[[#This Row],[VRSTA PROJEKTA]],Parametri[VRSTA PROJEKTA],0),MATCH(DetaljiOProjektu[[#Headers],[VODITELJ KLIJENTA]],Parametri[#Headers],0))*INDEX('PARAMETRI PROJEKTA'!$B$12:$H$12,1,MATCH(DetaljiOProjektu[[#Headers],[VODITELJ KLIJENTA]],Parametri[#Headers],0))*DetaljiOProjektu[[#This Row],[PROCIJENJENI RAD]]","v":{"v":7200,"d":"7,200 kn"}},{"$f":"INDEX(Parametri[],MATCH(DetaljiOProjektu[[#This Row],[VRSTA PROJEKTA]],Parametri[VRSTA PROJEKTA],0),MATCH(DetaljiOProjektu[[#Headers],[VODITELJ PROJEKTA]],Parametri[#Headers],0))*INDEX('PARAMETRI PROJEKTA'!$B$12:$H$12,1,MATCH(DetaljiOProjektu[[#Headers],[VODITELJ PROJEKTA]],Parametri[#Headers],0))*DetaljiOProjektu[[#This Row],[PROCIJENJENI RAD]]","v":{"v":2400,"d":"2,400 kn"}},{"$f":"INDEX(Parametri[],MATCH(DetaljiOProjektu[[#This Row],[VRSTA PROJEKTA]],Parametri[VRSTA PROJEKTA],0),MATCH(DetaljiOProjektu[[#Headers],[VODITELJ STRATEGIJE]],Parametri[#Headers],0))*INDEX('PARAMETRI PROJEKTA'!$B$12:$H$12,1,MATCH(DetaljiOProjektu[[#Headers],[VODITELJ STRATEGIJE]],Parametri[#Headers],0))*DetaljiOProjektu[[#This Row],[PROCIJENJENI RAD]]","v":{"v":18000,"d":"18,000 kn"}},{"$f":"INDEX(Parametri[],MATCH(DetaljiOProjektu[[#This Row],[VRSTA PROJEKTA]],Parametri[VRSTA PROJEKTA],0),MATCH(DetaljiOProjektu[[#Headers],[STRUČNJAK ZA DIZAJN]],Parametri[#Headers],0))*INDEX('PARAMETRI PROJEKTA'!$B$12:$H$12,1,MATCH(DetaljiOProjektu[[#Headers],[STRUČNJAK ZA DIZAJN]],Parametri[#Headers],0))*DetaljiOProjektu[[#This Row],[PROCIJENJENI RAD]]","v":{"v":0,"d":"0 kn"}},{"$f":"INDEX(Parametri[],MATCH(DetaljiOProjektu[[#This Row],[VRSTA PROJEKTA]],Parametri[VRSTA PROJEKTA],0),MATCH(DetaljiOProjektu[[#Headers],[OSOBLJE DOGAĐAJA]],Parametri[#Headers],0))*INDEX('PARAMETRI PROJEKTA'!$B$12:$H$12,1,MATCH(DetaljiOProjektu[[#Headers],[OSOBLJE DOGAĐAJA]],Parametri[#Headers],0))*DetaljiOProjektu[[#This Row],[PROCIJENJENI RAD]]","v":{"v":0,"d":"0 kn"}},{"$f":"INDEX(Parametri[],MATCH(DetaljiOProjektu[[#This Row],[VRSTA PROJEKTA]],Parametri[VRSTA PROJEKTA],0),MATCH(DetaljiOProjektu[[#Headers],[ADMINISTRATORI]],Parametri[#Headers],0))*INDEX('PARAMETRI PROJEKTA'!$B$12:$H$12,1,MATCH(DetaljiOProjektu[[#Headers],[ADMINISTRATORI]],Parametri[#Headers],0))*DetaljiOProjektu[[#This Row],[PROCIJENJENI RAD]]","v":{"v":1200,"d":"1,200 kn"}},{"$f":"INDEX(Parametri[],MATCH(DetaljiOProjektu[[#This Row],[VRSTA PROJEKTA]],Parametri[VRSTA PROJEKTA],0),MATCH(DetaljiOProjektu[[#Headers],[VODITELJ KLIJENTA]],Parametri[#Headers],0))*INDEX('PARAMETRI PROJEKTA'!$B$12:$H$12,1,MATCH(DetaljiOProjektu[[#Headers],[VODITELJ KLIJENTA]],Parametri[#Headers],0))*DetaljiOProjektu[[#This Row],[STVARNI RAD]]","v":{"v":7920,"d":"7,920 kn"}},{"$f":"INDEX(Parametri[],MATCH(DetaljiOProjektu[[#This Row],[VRSTA PROJEKTA]],Parametri[VRSTA PROJEKTA],0),MATCH(DetaljiOProjektu[[#Headers],[VODITELJ PROJEKTA]],Parametri[#Headers],0))*INDEX('PARAMETRI PROJEKTA'!$B$12:$H$12,1,MATCH(DetaljiOProjektu[[#Headers],[VODITELJ PROJEKTA]],Parametri[#Headers],0))*DetaljiOProjektu[[#This Row],[STVARNI RAD]]","v":{"v":2640,"d":"2,640 kn"}},{"$f":"INDEX(Parametri[],MATCH(DetaljiOProjektu[[#This Row],[VRSTA PROJEKTA]],Parametri[VRSTA PROJEKTA],0),MATCH(DetaljiOProjektu[[#Headers],[VODITELJ STRATEGIJE]],Parametri[#Headers],0))*INDEX('PARAMETRI PROJEKTA'!$B$12:$H$12,1,MATCH(DetaljiOProjektu[[#Headers],[VODITELJ STRATEGIJE]],Parametri[#Headers],0))*DetaljiOProjektu[[#This Row],[STVARNI RAD]]","v":{"v":19800,"d":"19,800 kn"}},{"$f":"INDEX(Parametri[],MATCH(DetaljiOProjektu[[#This Row],[VRSTA PROJEKTA]],Parametri[VRSTA PROJEKTA],0),MATCH(DetaljiOProjektu[[#Headers],[STRUČNJAK ZA DIZAJN]],Parametri[#Headers],0))*INDEX('PARAMETRI PROJEKTA'!$B$12:$H$12,1,MATCH(DetaljiOProjektu[[#Headers],[STRUČNJAK ZA DIZAJN]],Parametri[#Headers],0))*DetaljiOProjektu[[#This Row],[STVARNI RAD]]","v":{"v":0,"d":"0 kn"}},{"$f":"INDEX(Parametri[],MATCH(DetaljiOProjektu[[#This Row],[VRSTA PROJEKTA]],Parametri[VRSTA PROJEKTA],0),MATCH(DetaljiOProjektu[[#Headers],[OSOBLJE DOGAĐAJA]],Parametri[#Headers],0))*INDEX('PARAMETRI PROJEKTA'!$B$12:$H$12,1,MATCH(DetaljiOProjektu[[#Headers],[OSOBLJE DOGAĐAJA]],Parametri[#Headers],0))*DetaljiOProjektu[[#This Row],[STVARNI RAD]]","v":{"v":0,"d":"0 kn"}},{"$f":"INDEX(Parametri[],MATCH(DetaljiOProjektu[[#This Row],[VRSTA PROJEKTA]],Parametri[VRSTA PROJEKTA],0),MATCH(DetaljiOProjektu[[#Headers],[ADMINISTRATORI]],Parametri[#Headers],0))*INDEX('PARAMETRI PROJEKTA'!$B$12:$H$12,1,MATCH(DetaljiOProjektu[[#Headers],[ADMINISTRATORI]],Parametri[#Headers],0))*DetaljiOProjektu[[#This Row],[STVARNI RAD]]","v":{"v":1320,"d":"1,320 kn"}}]
[null,"Projekt 2","Planiranje događaja",{"$f":"DATE(YEAR(TODAY())+1,6,25)","v":"2020-06-25"},{"$f":"DATE(YEAR(TODAY())+1,7,27)","v":"2020-07-27"},{"$f":"DATE(YEAR(TODAY()),7,15)","v":"2019-07-15"},{"$f":"DATE(YEAR(TODAY())+1,8,25)","v":"2020-08-25"},400,390,{"$f":"DAYS360(DetaljiOProjektu[[#This Row],[PROCIJENJENI POČETAK]],DetaljiOProjektu[[#This Row],[PROCIJENJENI ZAVRŠETAK]],FALSE)","v":32},{"$f":"DAYS360(DetaljiOProjektu[[#This Row],[STVARNI POČETAK]],DetaljiOProjektu[[#This Row],[STVARNI ZAVRŠETAK]],FALSE)","v":400},{"$f":"INDEX(Parametri[],MATCH(DetaljiOProjektu[[#This Row],[VRSTA PROJEKTA]],Parametri[VRSTA PROJEKTA],0),MATCH(DetaljiOProjektu[[#Headers],[VODITELJ KLIJENTA]],Parametri[#Headers],0))*INDEX('PARAMETRI PROJEKTA'!$B$12:$H$12,1,MATCH(DetaljiOProjektu[[#Headers],[VODITELJ KLIJENTA]],Parametri[#Headers],0))*DetaljiOProjektu[[#This Row],[PROCIJENJENI RAD]]","v":{"v":14400,"d":"14,400 kn"}},{"$f":"INDEX(Parametri[],MATCH(DetaljiOProjektu[[#This Row],[VRSTA PROJEKTA]],Parametri[VRSTA PROJEKTA],0),MATCH(DetaljiOProjektu[[#Headers],[VODITELJ PROJEKTA]],Parametri[#Headers],0))*INDEX('PARAMETRI PROJEKTA'!$B$12:$H$12,1,MATCH(DetaljiOProjektu[[#Headers],[VODITELJ PROJEKTA]],Parametri[#Headers],0))*DetaljiOProjektu[[#This Row],[PROCIJENJENI RAD]]","v":{"v":24000,"d":"24,000 kn"}},{"$f":"INDEX(Parametri[],MATCH(DetaljiOProjektu[[#This Row],[VRSTA PROJEKTA]],Parametri[VRSTA PROJEKTA],0),MATCH(DetaljiOProjektu[[#Headers],[VODITELJ STRATEGIJE]],Parametri[#Headers],0))*INDEX('PARAMETRI PROJEKTA'!$B$12:$H$12,1,MATCH(DetaljiOProjektu[[#Headers],[VODITELJ STRATEGIJE]],Parametri[#Headers],0))*DetaljiOProjektu[[#This Row],[PROCIJENJENI RAD]]","v":{"v":6000,"d":"6,000 kn"}},{"$f":"INDEX(Parametri[],MATCH(DetaljiOProjektu[[#This Row],[VRSTA PROJEKTA]],Parametri[VRSTA PROJEKTA],0),MATCH(DetaljiOProjektu[[#Headers],[STRUČNJAK ZA DIZAJN]],Parametri[#Headers],0))*INDEX('PARAMETRI PROJEKTA'!$B$12:$H$12,1,MATCH(DetaljiOProjektu[[#Headers],[STRUČNJAK ZA DIZAJN]],Parametri[#Headers],0))*DetaljiOProjektu[[#This Row],[PROCIJENJENI RAD]]","v":{"v":4000,"d":"4,000 kn"}},{"$f":"INDEX(Parametri[],MATCH(DetaljiOProjektu[[#This Row],[VRSTA PROJEKTA]],Parametri[VRSTA PROJEKTA],0),MATCH(DetaljiOProjektu[[#Headers],[OSOBLJE DOGAĐAJA]],Parametri[#Headers],0))*INDEX('PARAMETRI PROJEKTA'!$B$12:$H$12,1,MATCH(DetaljiOProjektu[[#Headers],[OSOBLJE DOGAĐAJA]],Parametri[#Headers],0))*DetaljiOProjektu[[#This Row],[PROCIJENJENI RAD]]","v":{"v":0,"d":"0 kn"}},{"$f":"INDEX(Parametri[],MATCH(DetaljiOProjektu[[#This Row],[VRSTA PROJEKTA]],Parametri[VRSTA PROJEKTA],0),MATCH(DetaljiOProjektu[[#Headers],[ADMINISTRATORI]],Parametri[#Headers],0))*INDEX('PARAMETRI PROJEKTA'!$B$12:$H$12,1,MATCH(DetaljiOProjektu[[#Headers],[ADMINISTRATORI]],Parametri[#Headers],0))*DetaljiOProjektu[[#This Row],[PROCIJENJENI RAD]]","v":{"v":2400,"d":"2,400 kn"}},{"$f":"INDEX(Parametri[],MATCH(DetaljiOProjektu[[#This Row],[VRSTA PROJEKTA]],Parametri[VRSTA PROJEKTA],0),MATCH(DetaljiOProjektu[[#Headers],[VODITELJ KLIJENTA]],Parametri[#Headers],0))*INDEX('PARAMETRI PROJEKTA'!$B$12:$H$12,1,MATCH(DetaljiOProjektu[[#Headers],[VODITELJ KLIJENTA]],Parametri[#Headers],0))*DetaljiOProjektu[[#This Row],[STVARNI RAD]]","v":{"v":14040,"d":"14,040 kn"}},{"$f":"INDEX(Parametri[],MATCH(DetaljiOProjektu[[#This Row],[VRSTA PROJEKTA]],Parametri[VRSTA PROJEKTA],0),MATCH(DetaljiOProjektu[[#Headers],[VODITELJ PROJEKTA]],Parametri[#Headers],0))*INDEX('PARAMETRI PROJEKTA'!$B$12:$H$12,1,MATCH(DetaljiOProjektu[[#Headers],[VODITELJ PROJEKTA]],Parametri[#Headers],0))*DetaljiOProjektu[[#This Row],[STVARNI RAD]]","v":{"v":23400,"d":"23,400 kn"}},{"$f":"INDEX(Parametri[],MATCH(DetaljiOProjektu[[#This Row],[VRSTA PROJEKTA]],Parametri[VRSTA PROJEKTA],0),MATCH(DetaljiOProjektu[[#Headers],[VODITELJ STRATEGIJE]],Parametri[#Headers],0))*INDEX('PARAMETRI PROJEKTA'!$B$12:$H$12,1,MATCH(DetaljiOProjektu[[#Headers],[VODITELJ STRATEGIJE]],Parametri[#Headers],0))*DetaljiOProjektu[[#This Row],[STVARNI RAD]]","v":{"v":5850,"d":"5,850 kn"}},{"$f":"INDEX(Parametri[],MATCH(DetaljiOProjektu[[#This Row],[VRSTA PROJEKTA]],Parametri[VRSTA PROJEKTA],0),MATCH(DetaljiOProjektu[[#Headers],[STRUČNJAK ZA DIZAJN]],Parametri[#Headers],0))*INDEX('PARAMETRI PROJEKTA'!$B$12:$H$12,1,MATCH(DetaljiOProjektu[[#Headers],[STRUČNJAK ZA DIZAJN]],Parametri[#Headers],0))*DetaljiOProjektu[[#This Row],[STVARNI RAD]]","v":{"v":3900,"d":"3,900 kn"}},{"$f":"INDEX(Parametri[],MATCH(DetaljiOProjektu[[#This Row],[VRSTA PROJEKTA]],Parametri[VRSTA PROJEKTA],0),MATCH(DetaljiOProjektu[[#Headers],[OSOBLJE DOGAĐAJA]],Parametri[#Headers],0))*INDEX('PARAMETRI PROJEKTA'!$B$12:$H$12,1,MATCH(DetaljiOProjektu[[#Headers],[OSOBLJE DOGAĐAJA]],Parametri[#Headers],0))*DetaljiOProjektu[[#This Row],[STVARNI RAD]]","v":{"v":0,"d":"0 kn"}},{"$f":"INDEX(Parametri[],MATCH(DetaljiOProjektu[[#This Row],[VRSTA PROJEKTA]],Parametri[VRSTA PROJEKTA],0),MATCH(DetaljiOProjektu[[#Headers],[ADMINISTRATORI]],Parametri[#Headers],0))*INDEX('PARAMETRI PROJEKTA'!$B$12:$H$12,1,MATCH(DetaljiOProjektu[[#Headers],[ADMINISTRATORI]],Parametri[#Headers],0))*DetaljiOProjektu[[#This Row],[STVARNI RAD]]","v":{"v":2340,"d":"2,340 kn"}}]
[null,"Projekt 3","Dizajn događaja",{"$f":"DATE(YEAR(TODAY())+2,7,12)","v":"2021-07-12"},{"$f":"DATE(YEAR(TODAY())+2,9,19)","v":"2021-09-19"},{"$f":"DATE(YEAR(TODAY())+6,8,7)","v":"2025-08-07"},{"$f":"DATE(YEAR(TODAY())+6,10,10)","v":"2025-10-10"},500,500,{"$f":"DAYS360(DetaljiOProjektu[[#This Row],[PROCIJENJENI POČETAK]],DetaljiOProjektu[[#This Row],[PROCIJENJENI ZAVRŠETAK]],FALSE)","v":67},{"$f":"DAYS360(DetaljiOProjektu[[#This Row],[STVARNI POČETAK]],DetaljiOProjektu[[#This Row],[STVARNI ZAVRŠETAK]],FALSE)","v":63},{"$f":"INDEX(Parametri[],MATCH(DetaljiOProjektu[[#This Row],[VRSTA PROJEKTA]],Parametri[VRSTA PROJEKTA],0),MATCH(DetaljiOProjektu[[#Headers],[VODITELJ KLIJENTA]],Parametri[#Headers],0))*INDEX('PARAMETRI PROJEKTA'!$B$12:$H$12,1,MATCH(DetaljiOProjektu[[#Headers],[VODITELJ KLIJENTA]],Parametri[#Headers],0))*DetaljiOProjektu[[#This Row],[PROCIJENJENI RAD]]","v":{"v":18000,"d":"18,000 kn"}},{"$f":"INDEX(Parametri[],MATCH(DetaljiOProjektu[[#This Row],[VRSTA PROJEKTA]],Parametri[VRSTA PROJEKTA],0),MATCH(DetaljiOProjektu[[#Headers],[VODITELJ PROJEKTA]],Parametri[#Headers],0))*INDEX('PARAMETRI PROJEKTA'!$B$12:$H$12,1,MATCH(DetaljiOProjektu[[#Headers],[VODITELJ PROJEKTA]],Parametri[#Headers],0))*DetaljiOProjektu[[#This Row],[PROCIJENJENI RAD]]","v":{"v":12000,"d":"12,000 kn"}},{"$f":"INDEX(Parametri[],MATCH(DetaljiOProjektu[[#This Row],[VRSTA PROJEKTA]],Parametri[VRSTA PROJEKTA],0),MATCH(DetaljiOProjektu[[#Headers],[VODITELJ STRATEGIJE]],Parametri[#Headers],0))*INDEX('PARAMETRI PROJEKTA'!$B$12:$H$12,1,MATCH(DetaljiOProjektu[[#Headers],[VODITELJ STRATEGIJE]],Parametri[#Headers],0))*DetaljiOProjektu[[#This Row],[PROCIJENJENI RAD]]","v":{"v":0,"d":"0 kn"}},{"$f":"INDEX(Parametri[],MATCH(DetaljiOProjektu[[#This Row],[VRSTA PROJEKTA]],Parametri[VRSTA PROJEKTA],0),MATCH(DetaljiOProjektu[[#Headers],[STRUČNJAK ZA DIZAJN]],Parametri[#Headers],0))*INDEX('PARAMETRI PROJEKTA'!$B$12:$H$12,1,MATCH(DetaljiOProjektu[[#Headers],[STRUČNJAK ZA DIZAJN]],Parametri[#Headers],0))*DetaljiOProjektu[[#This Row],[PROCIJENJENI RAD]]","v":{"v":25000,"d":"25,000 kn"}},{"$f":"INDEX(Parametri[],MATCH(DetaljiOProjektu[[#This Row],[VRSTA PROJEKTA]],Parametri[VRSTA PROJEKTA],0),MATCH(DetaljiOProjektu[[#Headers],[OSOBLJE DOGAĐAJA]],Parametri[#Headers],0))*INDEX('PARAMETRI PROJEKTA'!$B$12:$H$12,1,MATCH(DetaljiOProjektu[[#Headers],[OSOBLJE DOGAĐAJA]],Parametri[#Headers],0))*DetaljiOProjektu[[#This Row],[PROCIJENJENI RAD]]","v":{"v":0,"d":"0 kn"}},{"$f":"INDEX(Parametri[],MATCH(DetaljiOProjektu[[#This Row],[VRSTA PROJEKTA]],Parametri[VRSTA PROJEKTA],0),MATCH(DetaljiOProjektu[[#Headers],[ADMINISTRATORI]],Parametri[#Headers],0))*INDEX('PARAMETRI PROJEKTA'!$B$12:$H$12,1,MATCH(DetaljiOProjektu[[#Headers],[ADMINISTRATORI]],Parametri[#Headers],0))*DetaljiOProjektu[[#This Row],[PROCIJENJENI RAD]]","v":{"v":3000,"d":"3,000 kn"}},{"$f":"INDEX(Parametri[],MATCH(DetaljiOProjektu[[#This Row],[VRSTA PROJEKTA]],Parametri[VRSTA PROJEKTA],0),MATCH(DetaljiOProjektu[[#Headers],[VODITELJ KLIJENTA]],Parametri[#Headers],0))*INDEX('PARAMETRI PROJEKTA'!$B$12:$H$12,1,MATCH(DetaljiOProjektu[[#Headers],[VODITELJ KLIJENTA]],Parametri[#Headers],0))*DetaljiOProjektu[[#This Row],[STVARNI RAD]]","v":{"v":18000,"d":"18,000 kn"}},{"$f":"INDEX(Parametri[],MATCH(DetaljiOProjektu[[#This Row],[VRSTA PROJEKTA]],Parametri[VRSTA PROJEKTA],0),MATCH(DetaljiOProjektu[[#Headers],[VODITELJ PROJEKTA]],Parametri[#Headers],0))*INDEX('PARAMETRI PROJEKTA'!$B$12:$H$12,1,MATCH(DetaljiOProjektu[[#Headers],[VODITELJ PROJEKTA]],Parametri[#Headers],0))*DetaljiOProjektu[[#This Row],[STVARNI RAD]]","v":{"v":12000,"d":"12,000 kn"}},{"$f":"INDEX(Parametri[],MATCH(DetaljiOProjektu[[#This Row],[VRSTA PROJEKTA]],Parametri[VRSTA PROJEKTA],0),MATCH(DetaljiOProjektu[[#Headers],[VODITELJ STRATEGIJE]],Parametri[#Headers],0))*INDEX('PARAMETRI PROJEKTA'!$B$12:$H$12,1,MATCH(DetaljiOProjektu[[#Headers],[VODITELJ STRATEGIJE]],Parametri[#Headers],0))*DetaljiOProjektu[[#This Row],[STVARNI RAD]]","v":{"v":0,"d":"0 kn"}},{"$f":"INDEX(Parametri[],MATCH(DetaljiOProjektu[[#This Row],[VRSTA PROJEKTA]],Parametri[VRSTA PROJEKTA],0),MATCH(DetaljiOProjektu[[#Headers],[STRUČNJAK ZA DIZAJN]],Parametri[#Headers],0))*INDEX('PARAMETRI PROJEKTA'!$B$12:$H$12,1,MATCH(DetaljiOProjektu[[#Headers],[STRUČNJAK ZA DIZAJN]],Parametri[#Headers],0))*DetaljiOProjektu[[#This Row],[STVARNI RAD]]","v":{"v":25000,"d":"25,000 kn"}},{"$f":"INDEX(Parametri[],MATCH(DetaljiOProjektu[[#This Row],[VRSTA PROJEKTA]],Parametri[VRSTA PROJEKTA],0),MATCH(DetaljiOProjektu[[#Headers],[OSOBLJE DOGAĐAJA]],Parametri[#Headers],0))*INDEX('PARAMETRI PROJEKTA'!$B$12:$H$12,1,MATCH(DetaljiOProjektu[[#Headers],[OSOBLJE DOGAĐAJA]],Parametri[#Headers],0))*DetaljiOProjektu[[#This Row],[STVARNI RAD]]","v":{"v":0,"d":"0 kn"}},{"$f":"INDEX(Parametri[],MATCH(DetaljiOProjektu[[#This Row],[VRSTA PROJEKTA]],Parametri[VRSTA PROJEKTA],0),MATCH(DetaljiOProjektu[[#Headers],[ADMINISTRATORI]],Parametri[#Headers],0))*INDEX('PARAMETRI PROJEKTA'!$B$12:$H$12,1,MATCH(DetaljiOProjektu[[#Headers],[ADMINISTRATORI]],Parametri[#Headers],0))*DetaljiOProjektu[[#This Row],[STVARNI RAD]]","v":{"v":3000,"d":"3,000 kn"}}]
[null,"Projekt 4","Logistika događaja",{"$f":"DATE(YEAR(TODAY())+3,7,30)","v":"2022-07-30"},{"$f":"DATE(YEAR(TODAY())+3,9,28)","v":"2022-09-28"},{"$f":"DATE(YEAR(TODAY())+3,9,14)","v":"2022-09-14"},{"$f":"DATE(YEAR(TODAY())+3,11,13)","v":"2022-11-13"},150,145,{"$f":"DAYS360(DetaljiOProjektu[[#This Row],[PROCIJENJENI POČETAK]],DetaljiOProjektu[[#This Row],[PROCIJENJENI ZAVRŠETAK]],FALSE)","v":58},{"$f":"DAYS360(DetaljiOProjektu[[#This Row],[STVARNI POČETAK]],DetaljiOProjektu[[#This Row],[STVARNI ZAVRŠETAK]],FALSE)","v":59},{"$f":"INDEX(Parametri[],MATCH(DetaljiOProjektu[[#This Row],[VRSTA PROJEKTA]],Parametri[VRSTA PROJEKTA],0),MATCH(DetaljiOProjektu[[#Headers],[VODITELJ KLIJENTA]],Parametri[#Headers],0))*INDEX('PARAMETRI PROJEKTA'!$B$12:$H$12,1,MATCH(DetaljiOProjektu[[#Headers],[VODITELJ KLIJENTA]],Parametri[#Headers],0))*DetaljiOProjektu[[#This Row],[PROCIJENJENI RAD]]","v":{"v":5400,"d":"5,400 kn"}},{"$f":"INDEX(Parametri[],MATCH(DetaljiOProjektu[[#This Row],[VRSTA PROJEKTA]],Parametri[VRSTA PROJEKTA],0),MATCH(DetaljiOProjektu[[#Headers],[VODITELJ PROJEKTA]],Parametri[#Headers],0))*INDEX('PARAMETRI PROJEKTA'!$B$12:$H$12,1,MATCH(DetaljiOProjektu[[#Headers],[VODITELJ PROJEKTA]],Parametri[#Headers],0))*DetaljiOProjektu[[#This Row],[PROCIJENJENI RAD]]","v":{"v":10800,"d":"10,800 kn"}},{"$f":"INDEX(Parametri[],MATCH(DetaljiOProjektu[[#This Row],[VRSTA PROJEKTA]],Parametri[VRSTA PROJEKTA],0),MATCH(DetaljiOProjektu[[#Headers],[VODITELJ STRATEGIJE]],Parametri[#Headers],0))*INDEX('PARAMETRI PROJEKTA'!$B$12:$H$12,1,MATCH(DetaljiOProjektu[[#Headers],[VODITELJ STRATEGIJE]],Parametri[#Headers],0))*DetaljiOProjektu[[#This Row],[PROCIJENJENI RAD]]","v":{"v":0,"d":"0 kn"}},{"$f":"INDEX(Parametri[],MATCH(DetaljiOProjektu[[#This Row],[VRSTA PROJEKTA]],Parametri[VRSTA PROJEKTA],0),MATCH(DetaljiOProjektu[[#Headers],[STRUČNJAK ZA DIZAJN]],Parametri[#Headers],0))*INDEX('PARAMETRI PROJEKTA'!$B$12:$H$12,1,MATCH(DetaljiOProjektu[[#Headers],[STRUČNJAK ZA DIZAJN]],Parametri[#Headers],0))*DetaljiOProjektu[[#This Row],[PROCIJENJENI RAD]]","v":{"v":0,"d":"0 kn"}},{"$f":"INDEX(Parametri[],MATCH(DetaljiOProjektu[[#This Row],[VRSTA PROJEKTA]],Parametri[VRSTA PROJEKTA],0),MATCH(DetaljiOProjektu[[#Headers],[OSOBLJE DOGAĐAJA]],Parametri[#Headers],0))*INDEX('PARAMETRI PROJEKTA'!$B$12:$H$12,1,MATCH(DetaljiOProjektu[[#Headers],[OSOBLJE DOGAĐAJA]],Parametri[#Headers],0))*DetaljiOProjektu[[#This Row],[PROCIJENJENI RAD]]","v":{"v":1200,"d":"1,200 kn"}},{"$f":"INDEX(Parametri[],MATCH(DetaljiOProjektu[[#This Row],[VRSTA PROJEKTA]],Parametri[VRSTA PROJEKTA],0),MATCH(DetaljiOProjektu[[#Headers],[ADMINISTRATORI]],Parametri[#Headers],0))*INDEX('PARAMETRI PROJEKTA'!$B$12:$H$12,1,MATCH(DetaljiOProjektu[[#Headers],[ADMINISTRATORI]],Parametri[#Headers],0))*DetaljiOProjektu[[#This Row],[PROCIJENJENI RAD]]","v":{"v":900,"d":"900 kn"}},{"$f":"INDEX(Parametri[],MATCH(DetaljiOProjektu[[#This Row],[VRSTA PROJEKTA]],Parametri[VRSTA PROJEKTA],0),MATCH(DetaljiOProjektu[[#Headers],[VODITELJ KLIJENTA]],Parametri[#Headers],0))*INDEX('PARAMETRI PROJEKTA'!$B$12:$H$12,1,MATCH(DetaljiOProjektu[[#Headers],[VODITELJ KLIJENTA]],Parametri[#Headers],0))*DetaljiOProjektu[[#This Row],[STVARNI RAD]]","v":{"v":5220,"d":"5,220 kn"}},{"$f":"INDEX(Parametri[],MATCH(DetaljiOProjektu[[#This Row],[VRSTA PROJEKTA]],Parametri[VRSTA PROJEKTA],0),MATCH(DetaljiOProjektu[[#Headers],[VODITELJ PROJEKTA]],Parametri[#Headers],0))*INDEX('PARAMETRI PROJEKTA'!$B$12:$H$12,1,MATCH(DetaljiOProjektu[[#Headers],[VODITELJ PROJEKTA]],Parametri[#Headers],0))*DetaljiOProjektu[[#This Row],[STVARNI RAD]]","v":{"v":10440,"d":"10,440 kn"}},{"$f":"INDEX(Parametri[],MATCH(DetaljiOProjektu[[#This Row],[VRSTA PROJEKTA]],Parametri[VRSTA PROJEKTA],0),MATCH(DetaljiOProjektu[[#Headers],[VODITELJ STRATEGIJE]],Parametri[#Headers],0))*INDEX('PARAMETRI PROJEKTA'!$B$12:$H$12,1,MATCH(DetaljiOProjektu[[#Headers],[VODITELJ STRATEGIJE]],Parametri[#Headers],0))*DetaljiOProjektu[[#This Row],[STVARNI RAD]]","v":{"v":0,"d":"0 kn"}},{"$f":"INDEX(Parametri[],MATCH(DetaljiOProjektu[[#This Row],[VRSTA PROJEKTA]],Parametri[VRSTA PROJEKTA],0),MATCH(DetaljiOProjektu[[#Headers],[STRUČNJAK ZA DIZAJN]],Parametri[#Headers],0))*INDEX('PARAMETRI PROJEKTA'!$B$12:$H$12,1,MATCH(DetaljiOProjektu[[#Headers],[STRUČNJAK ZA DIZAJN]],Parametri[#Headers],0))*DetaljiOProjektu[[#This Row],[STVARNI RAD]]","v":{"v":0,"d":"0 kn"}},{"$f":"INDEX(Parametri[],MATCH(DetaljiOProjektu[[#This Row],[VRSTA PROJEKTA]],Parametri[VRSTA PROJEKTA],0),MATCH(DetaljiOProjektu[[#Headers],[OSOBLJE DOGAĐAJA]],Parametri[#Headers],0))*INDEX('PARAMETRI PROJEKTA'!$B$12:$H$12,1,MATCH(DetaljiOProjektu[[#Headers],[OSOBLJE DOGAĐAJA]],Parametri[#Headers],0))*DetaljiOProjektu[[#This Row],[STVARNI RAD]]","v":{"v":1160,"d":"1,160 kn"}},{"$f":"INDEX(Parametri[],MATCH(DetaljiOProjektu[[#This Row],[VRSTA PROJEKTA]],Parametri[VRSTA PROJEKTA],0),MATCH(DetaljiOProjektu[[#Headers],[ADMINISTRATORI]],Parametri[#Headers],0))*INDEX('PARAMETRI PROJEKTA'!$B$12:$H$12,1,MATCH(DetaljiOProjektu[[#Headers],[ADMINISTRATORI]],Parametri[#Headers],0))*DetaljiOProjektu[[#This Row],[STVARNI RAD]]","v":{"v":870,"d":"870 kn"}}]
[null,"Projekt 5","Osoblje za događaj",{"$f":"DATE(YEAR(TODAY())+4,8,11)","v":"2023-08-11"},{"$f":"DATE(YEAR(TODAY())+4,8,21)","v":"2023-08-21"},{"$f":"DATE(YEAR(TODAY())+4,9,14)","v":"2023-09-14"},{"$f":"DATE(YEAR(TODAY())+4,9,25)","v":"2023-09-25"},250,255,{"$f":"DAYS360(DetaljiOProjektu[[#This Row],[PROCIJENJENI POČETAK]],DetaljiOProjektu[[#This Row],[PROCIJENJENI ZAVRŠETAK]],FALSE)","v":10},{"$f":"DAYS360(DetaljiOProjektu[[#This Row],[STVARNI POČETAK]],DetaljiOProjektu[[#This Row],[STVARNI ZAVRŠETAK]],FALSE)","v":11},{"$f":"INDEX(Parametri[],MATCH(DetaljiOProjektu[[#This Row],[VRSTA PROJEKTA]],Parametri[VRSTA PROJEKTA],0),MATCH(DetaljiOProjektu[[#Headers],[VODITELJ KLIJENTA]],Parametri[#Headers],0))*INDEX('PARAMETRI PROJEKTA'!$B$12:$H$12,1,MATCH(DetaljiOProjektu[[#Headers],[VODITELJ KLIJENTA]],Parametri[#Headers],0))*DetaljiOProjektu[[#This Row],[PROCIJENJENI RAD]]","v":{"v":9000,"d":"9,000 kn"}},{"$f":"INDEX(Parametri[],MATCH(DetaljiOProjektu[[#This Row],[VRSTA PROJEKTA]],Parametri[VRSTA PROJEKTA],0),MATCH(DetaljiOProjektu[[#Headers],[VODITELJ PROJEKTA]],Parametri[#Headers],0))*INDEX('PARAMETRI PROJEKTA'!$B$12:$H$12,1,MATCH(DetaljiOProjektu[[#Headers],[VODITELJ PROJEKTA]],Parametri[#Headers],0))*DetaljiOProjektu[[#This Row],[PROCIJENJENI RAD]]","v":{"v":3000,"d":"3,000 kn"}},{"$f":"INDEX(Parametri[],MATCH(DetaljiOProjektu[[#This Row],[VRSTA PROJEKTA]],Parametri[VRSTA PROJEKTA],0),MATCH(DetaljiOProjektu[[#Headers],[VODITELJ STRATEGIJE]],Parametri[#Headers],0))*INDEX('PARAMETRI PROJEKTA'!$B$12:$H$12,1,MATCH(DetaljiOProjektu[[#Headers],[VODITELJ STRATEGIJE]],Parametri[#Headers],0))*DetaljiOProjektu[[#This Row],[PROCIJENJENI RAD]]","v":{"v":0,"d":"0 kn"}},{"$f":"INDEX(Parametri[],MATCH(DetaljiOProjektu[[#This Row],[VRSTA PROJEKTA]],Parametri[VRSTA PROJEKTA],0),MATCH(DetaljiOProjektu[[#Headers],[STRUČNJAK ZA DIZAJN]],Parametri[#Headers],0))*INDEX('PARAMETRI PROJEKTA'!$B$12:$H$12,1,MATCH(DetaljiOProjektu[[#Headers],[STRUČNJAK ZA DIZAJN]],Parametri[#Headers],0))*DetaljiOProjektu[[#This Row],[PROCIJENJENI RAD]]","v":{"v":0,"d":"0 kn"}},{"$f":"INDEX(Parametri[],MATCH(DetaljiOProjektu[[#This Row],[VRSTA PROJEKTA]],Parametri[VRSTA PROJEKTA],0),MATCH(DetaljiOProjektu[[#Headers],[OSOBLJE DOGAĐAJA]],Parametri[#Headers],0))*INDEX('PARAMETRI PROJEKTA'!$B$12:$H$12,1,MATCH(DetaljiOProjektu[[#Headers],[OSOBLJE DOGAĐAJA]],Parametri[#Headers],0))*DetaljiOProjektu[[#This Row],[PROCIJENJENI RAD]]","v":{"v":12000,"d":"12,000 kn"}},{"$f":"INDEX(Parametri[],MATCH(DetaljiOProjektu[[#This Row],[VRSTA PROJEKTA]],Parametri[VRSTA PROJEKTA],0),MATCH(DetaljiOProjektu[[#Headers],[ADMINISTRATORI]],Parametri[#Headers],0))*INDEX('PARAMETRI PROJEKTA'!$B$12:$H$12,1,MATCH(DetaljiOProjektu[[#Headers],[ADMINISTRATORI]],Parametri[#Headers],0))*DetaljiOProjektu[[#This Row],[PROCIJENJENI RAD]]","v":{"v":1500,"d":"1,500 kn"}},{"$f":"INDEX(Parametri[],MATCH(DetaljiOProjektu[[#This Row],[VRSTA PROJEKTA]],Parametri[VRSTA PROJEKTA],0),MATCH(DetaljiOProjektu[[#Headers],[VODITELJ KLIJENTA]],Parametri[#Headers],0))*INDEX('PARAMETRI PROJEKTA'!$B$12:$H$12,1,MATCH(DetaljiOProjektu[[#Headers],[VODITELJ KLIJENTA]],Parametri[#Headers],0))*DetaljiOProjektu[[#This Row],[STVARNI RAD]]","v":{"v":9180,"d":"9,180 kn"}},{"$f":"INDEX(Parametri[],MATCH(DetaljiOProjektu[[#This Row],[VRSTA PROJEKTA]],Parametri[VRSTA PROJEKTA],0),MATCH(DetaljiOProjektu[[#Headers],[VODITELJ PROJEKTA]],Parametri[#Headers],0))*INDEX('PARAMETRI PROJEKTA'!$B$12:$H$12,1,MATCH(DetaljiOProjektu[[#Headers],[VODITELJ PROJEKTA]],Parametri[#Headers],0))*DetaljiOProjektu[[#This Row],[STVARNI RAD]]","v":{"v":3060,"d":"3,060 kn"}},{"$f":"INDEX(Parametri[],MATCH(DetaljiOProjektu[[#This Row],[VRSTA PROJEKTA]],Parametri[VRSTA PROJEKTA],0),MATCH(DetaljiOProjektu[[#Headers],[VODITELJ STRATEGIJE]],Parametri[#Headers],0))*INDEX('PARAMETRI PROJEKTA'!$B$12:$H$12,1,MATCH(DetaljiOProjektu[[#Headers],[VODITELJ STRATEGIJE]],Parametri[#Headers],0))*DetaljiOProjektu[[#This Row],[STVARNI RAD]]","v":{"v":0,"d":"0 kn"}},{"$f":"INDEX(Parametri[],MATCH(DetaljiOProjektu[[#This Row],[VRSTA PROJEKTA]],Parametri[VRSTA PROJEKTA],0),MATCH(DetaljiOProjektu[[#Headers],[STRUČNJAK ZA DIZAJN]],Parametri[#Headers],0))*INDEX('PARAMETRI PROJEKTA'!$B$12:$H$12,1,MATCH(DetaljiOProjektu[[#Headers],[STRUČNJAK ZA DIZAJN]],Parametri[#Headers],0))*DetaljiOProjektu[[#This Row],[STVARNI RAD]]","v":{"v":0,"d":"0 kn"}},{"$f":"INDEX(Parametri[],MATCH(DetaljiOProjektu[[#This Row],[VRSTA PROJEKTA]],Parametri[VRSTA PROJEKTA],0),MATCH(DetaljiOProjektu[[#Headers],[OSOBLJE DOGAĐAJA]],Parametri[#Headers],0))*INDEX('PARAMETRI PROJEKTA'!$B$12:$H$12,1,MATCH(DetaljiOProjektu[[#Headers],[OSOBLJE DOGAĐAJA]],Parametri[#Headers],0))*DetaljiOProjektu[[#This Row],[STVARNI RAD]]","v":{"v":12240,"d":"12,240 kn"}},{"$f":"INDEX(Parametri[],MATCH(DetaljiOProjektu[[#This Row],[VRSTA PROJEKTA]],Parametri[VRSTA PROJEKTA],0),MATCH(DetaljiOProjektu[[#Headers],[ADMINISTRATORI]],Parametri[#Headers],0))*INDEX('PARAMETRI PROJEKTA'!$B$12:$H$12,1,MATCH(DetaljiOProjektu[[#Headers],[ADMINISTRATORI]],Parametri[#Headers],0))*DetaljiOProjektu[[#This Row],[STVARNI RAD]]","v":{"v":1530,"d":"1,530 kn"}}]
[null,"ZBROJ",{"$nulls":5},{"$f":"SUBTOTAL(109,DetaljiOProjektu[PROCIJENJENI RAD])","v":1500},{"$f":"SUBTOTAL(109,DetaljiOProjektu[STVARNI RAD])","v":1510},{"$f":"SUBTOTAL(109,DetaljiOProjektu[PROCIJENJENO TRAJANJE])","v":225},{"$f":"SUBTOTAL(109,DetaljiOProjektu[STVARNO TRAJANJE])","v":597}]

{"sheet":"UKUPNI ZBROJEVI ZA PROJEKT","index":3,"n_rows":10,"n_cols":14,"rows_kept":10}
["Dohvatite tablicu Ukupni zbrojevi za projekt na ovom radnom listu. Naziv tvrtke automatski se ažurira u ćeliji zdesna. Korisne upute nalaze se u ćelijama u tom stupcu. Pomoću tipke sa strelicom prema dolje počnite s radom.",{"$f":"'PARAMETRI PROJEKTA'!B1","v":"Naziv tvrtke"}]
["U ćeliji zdesna nalazi se naslov ovog radnog lista.","Praćenje projekata upravljanja događajem"]
["Poruka o povjerljivosti podataka nalazi se u ćeliji s desne strane.",{"$f":"'PARAMETRI PROJEKTA'!B3","v":"Naziv tvrtke – povjerljivo"}]
["Zaokretna tablica počinje u desnoj ćeliji i automatski se ažurira.\nINFORMACIJE\nDa biste osvježili zaokretnu tablicu, odaberite je (ili bilo koju ćeliju unutar zaokretne tablice) pa na kartici vrpce ALATI ZAOKRETNE TABLICE | ANALIZA odaberite Osvježi ili pritisnite SHIFT + F10 u bilo kojoj ćeliji zaokretne tablice pa odaberite Osvježi.","NAZIV PROJEKTA","PREDVIĐENI VODITELJ KLIJENTA","PREDVIĐENI VODITELJ PROJEKTA","PREDVIĐENI VODITELJ STRATEGIJE","PREDVIĐENI STRUČNJAK ZA DIZAJN","PREDVIĐENO OSOBLJE ZA DOGAĐAJ","PREDVIĐENO ADMINISTRATIVNO OSOBLJE","STVARNI VODITELJ KLIJENTA","STVARNI VODITELJ PROJEKTA","STVARNI VODITELJ STRATEGIJE","STVARNI STRUČNJAK ZA DIZAJN","STVARNO OSOBLJE ZA DOGAĐAJ","STVARNO ADMINISTRATIVNO OSOBLJE"]
[null,"Projekt 1",{"v":7200,"d":"7,200.00 kn"},{"v":2400,"d":"2,400.00 kn"},{"v":18000,"d":"18,000.00 kn"},{"v":0,"d":"0.00 kn"},{"v":0,"d":"0.00 kn"},{"v":1200,"d":"1,200.00 kn"},{"v":7920,"d":"7,920.00 kn"},{"v":2640,"d":"2,640.00 kn"},{"v":19800,"d":"19,800.00 kn"},{"v":0,"d":"0.00 kn"},{"v":0,"d":"0.00 kn"},{"v":1320,"d":"1,320.00 kn"}]
[null,"Projekt 2",{"v":14400,"d":"14,400.00 kn"},{"v":24000,"d":"24,000.00 kn"},{"v":6000,"d":"6,000.00 kn"},{"v":4000,"d":"4,000.00 kn"},{"v":0,"d":"0.00 kn"},{"v":2400,"d":"2,400.00 kn"},{"v":14040,"d":"14,040.00 kn"},{"v":23400,"d":"23,400.00 kn"},{"v":5850,"d":"5,850.00 kn"},{"v":3900,"d":"3,900.00 kn"},{"v":0,"d":"0.00 kn"},{"v":2340,"d":"2,340.00 kn"}]
[null,"Projekt 3",{"v":18000,"d":"18,000.00 kn"},{"v":12000,"d":"12,000.00 kn"},{"v":0,"d":"0.00 kn"},{"v":25000,"d":"25,000.00 kn"},{"v":0,"d":"0.00 kn"},{"v":3000,"d":"3,000.00 kn"},{"v":18000,"d":"18,000.00 kn"},{"v":12000,"d":"12,000.00 kn"},{"v":0,"d":"0.00 kn"},{"v":25000,"d":"25,000.00 kn"},{"v":0,"d":"0.00 kn"},{"v":3000,"d":"3,000.00 kn"}]
[null,"Projekt 4",{"v":5400,"d":"5,400.00 kn"},{"v":10800,"d":"10,800.00 kn"},{"v":0,"d":"0.00 kn"},{"v":0,"d":"0.00 kn"},{"v":1200,"d":"1,200.00 kn"},{"v":900,"d":"900.00 kn"},{"v":5220,"d":"5,220.00 kn"},{"v":10440,"d":"10,440.00 kn"},{"v":0,"d":"0.00 kn"},{"v":0,"d":"0.00 kn"},{"v":1160,"d":"1,160.00 kn"},{"v":870,"d":"870.00 kn"}]
[null,"Projekt 5",{"v":9000,"d":"9,000.00 kn"},{"v":3000,"d":"3,000.00 kn"},{"v":0,"d":"0.00 kn"},{"v":0,"d":"0.00 kn"},{"v":12000,"d":"12,000.00 kn"},{"v":1500,"d":"1,500.00 kn"},{"v":9180,"d":"9,180.00 kn"},{"v":3060,"d":"3,060.00 kn"},{"v":0,"d":"0.00 kn"},{"v":0,"d":"0.00 kn"},{"v":12240,"d":"12,240.00 kn"},{"v":1530,"d":"1,530.00 kn"}]
[null,"Ukupni zbroj",{"v":54000,"d":"54,000.00 kn"},{"v":52200,"d":"52,200.00 kn"},{"v":24000,"d":"24,000.00 kn"},{"v":29000,"d":"29,000.00 kn"},{"v":13200,"d":"13,200.00 kn"},{"v":9000,"d":"9,000.00 kn"},{"v":54360,"d":"54,360.00 kn"},{"v":51540,"d":"51,540.00 kn"},{"v":25650,"d":"25,650.00 kn"},{"v":28900,"d":"28,900.00 kn"},{"v":13400,"d":"13,400.00 kn"},{"v":9060,"d":"9,060.00 kn"}]